[Event "January 9 Early 2024"]
[Site "https://www.chess.com"]
[Date "2024.01.11"]
[Round "1"]
[White "Aashman Gupta"]
[Black "Ashraf, Artin"]
[Result "0-1"]
[Board "309"]
[TimeControl "180+1"]
[WhiteFideId "45022500"]
[BlackFideId "22514805"]
[WhiteElo "2492"]
[BlackElo "2922"]
[WhiteTeam "IND"]
[BlackTeam "IRI"]
[WhiteClock "0:00:05"]
[BlackClock "0:00:21"]

1. b3 {[%clk 0:03:00]}  Nf6 {[%clk 0:02:52]} 2. Bb2 {[%clk 0:03:00]}  e6 {[%clk 0:02:51]} 3. e3 {[%clk 0:03:00]}  c5 {[%clk 0:02:48]} 4. Nf3 {[%clk 0:02:58]}  b6 {[%clk 0:02:47]} 5. c4 {[%clk 0:02:56]}  Bb7 {[%clk 0:02:47]} 6. Nc3 {[%clk 0:02:57]}  Be7 {[%clk 0:02:41]} 7. Be2 {[%clk 0:02:50]}  O-O {[%clk 0:02:38]} 8. O-O {[%clk 0:02:51]}  Nc6 {[%clk 0:02:38]} 9. d4 {[%clk 0:02:47]}  cxd4 {[%clk 0:02:37]} 10. Nxd4 {[%clk 0:02:47]}  Ne5 {[%clk 0:02:37]} 11. Nf3 {[%clk 0:02:45]}  Ng6 {[%clk 0:02:16]} 12. Qd2 {[%clk 0:02:32]}  a6 {[%clk 0:02:15]} 13. Rfd1 {[%clk 0:02:31]}  Qc7 {[%clk 0:02:15]} 14. Rac1 {[%clk 0:02:26]}  Rfd8 {[%clk 0:02:14]} 15. h3 {[%clk 0:02:03]}  Rac8 {[%clk 0:02:13]} 16. Qe1 {[%clk 0:01:57]}  d6 {[%clk 0:02:08]} 17. Nd4 {[%clk 0:01:53]}  Ne5 {[%clk 0:02:07]} 18. f4 {[%clk 0:01:47]}  Ned7 {[%clk 0:02:07]} 19. Bf3 {[%clk 0:01:42]}  Bxf3 {[%clk 0:01:59]} 20. Nxf3 {[%clk 0:01:40]}  Qb7 {[%clk 0:01:55]} 21. e4 {[%clk 0:01:31]}  Nc5 {[%clk 0:01:53]} 22. e5 {[%clk 0:01:29]}  dxe5 {[%clk 0:01:52]} 23. Nxe5 {[%clk 0:01:22]}  b5 {[%clk 0:01:36]} 24. Rxd8+ {[%clk 0:00:55]}  Rxd8 {[%clk 0:01:37]} 25. Rd1 {[%clk 0:00:55]}  Rc8 {[%clk 0:01:34]} 26. Kh2 {[%clk 0:00:37]}  h5 {[%clk 0:01:25]} 27. Qe3 {[%clk 0:00:36]}  bxc4 {[%clk 0:01:18]} 28. Nxc4 {[%clk 0:00:34]}  Ncd7 {[%clk 0:01:17]} 29. Ba1 {[%clk 0:00:25]}  Bc5 {[%clk 0:01:10]} 30. Qg3 {[%clk 0:00:25]}  Bf8 {[%clk 0:00:59]} 31. Ne2 {[%clk 0:00:14]}  Qb8 {[%clk 0:00:51]} 32. Qf3 {[%clk 0:00:09]}  g6 {[%clk 0:00:46]} 33. Ne5 {[%clk 0:00:09]}  Rc7 {[%clk 0:00:33]} 34. Nxd7 {[%clk 0:00:08]}  Nxd7 {[%clk 0:00:33]} 35. Rxd7 {[%clk 0:00:03]}  Rxd7 {[%clk 0:00:33]} 36. Qc3 {[%clk 0:00:03]}  e5 {[%clk 0:00:34]} 37. fxe5 {[%clk 0:00:03]}  Bg7 {[%clk 0:00:24]} 38. Ng3 {[%clk 0:00:04]}  Re7 {[%clk 0:00:19]} 39. Qc5 {[%clk 0:00:03]}  Rxe5 {[%clk 0:00:19]} 40. Bxe5 {[%clk 0:00:03]}  Bxe5 {[%clk 0:00:20]} 41. Qe3 {[%clk 0:00:03]}  h4 {[%clk 0:00:20]} 42. Kg1 {[%clk 0:00:02]}  Bxg3 {[%clk 0:00:19]} 43. Kf1 {[%clk 0:00:02]}  Qc7 {[%clk 0:00:19]} 44. Ke2 {[%clk 0:00:03]}  Qc2+ {[%clk 0:00:18]} 45. Kf3 {[%clk 0:00:03]}  Qc6+ {[%clk 0:00:17]} 46. Qe4 {[%clk 0:00:02]}  Qxe4+ {[%clk 0:00:15]} 47. Kxe4 {[%clk 0:00:03]}  Kf8 {[%clk 0:00:15]} 48. Kd5 {[%clk 0:00:03]}  Ke7 {[%clk 0:00:16]} 49. b4 {[%clk 0:00:03]}  Kd7 {[%clk 0:00:16]} 50. a4 {[%clk 0:00:04]}  Be1 {[%clk 0:00:17]} 51. b5 {[%clk 0:00:05]}  axb5 {[%clk 0:00:17]} 52. axb5 {[%clk 0:00:05]}  Kc7 {[%clk 0:00:18]} 53. Ke5 {[%clk 0:00:06]}  Bc3+ {[%clk 0:00:18]} 54. Kf4 {[%clk 0:00:05]}  f6 {[%clk 0:00:18]} 55. Kg4 {[%clk 0:00:05]}  g5 {[%clk 0:00:19]} 56. g3 {[%clk 0:00:06]}  hxg3 {[%clk 0:00:20]} 57. Kxg3 {[%clk 0:00:06]}  Kb6 {[%clk 0:00:20]} 58. Kg4 {[%clk 0:00:07]}  Kxb5 {[%clk 0:00:20]} 59. Kf5 {[%clk 0:00:06]}  Kc4 {[%clk 0:00:20]} 60. Ke4 {[%clk 0:00:07]}  Be5 {[%clk 0:00:20]} 61. Kf5 {[%clk 0:00:07]}  Kd5 {[%clk 0:00:20]} 62. Kg4 {[%clk 0:00:05]}  Ke4 {[%clk 0:00:20]} 63. h4 {[%clk 0:00:04]}  gxh4 {[%clk 0:00:20]} 64. Kh3 {[%clk 0:00:04]}  f5 {[%clk 0:00:21]} 65. Kxh4 {[%clk 0:00:05]}  f4 {[%clk 0:00:21]} 66. Kh3 {[%clk 0:00:05]}  f3 {[%clk 0:00:21]} 0-1

[Event "January 9 Early 2024"]
[Site "https://www.chess.com"]
[Date "2024.01.11"]
[Round "1"]
[White "Kuzubov, Yuriy"]
[Black "Slade, Theodore"]
[Result "1-0"]
[Board "311"]
[TimeControl "180+1"]
[WhiteFideId "14112906"]
[BlackFideId "426547"]
[WhiteElo "2857"]
[BlackElo "2464"]
[WhiteTeam "UKR"]
[BlackTeam "ENG"]
[WhiteClock "0:00:09"]
[BlackClock "0:00:05"]

1. d4 {[%clk 0:03:00]}  d5 {[%clk 0:02:59]} 2. c4 {[%clk 0:03:00]}  e6 {[%clk 0:03:00]} 3. Nf3 {[%clk 0:03:00]}  a6 {[%clk 0:03:00]} 4. cxd5 {[%clk 0:02:59]}  exd5 {[%clk 0:03:01]} 5. Nc3 {[%clk 0:02:59]}  c6 {[%clk 0:03:02]} 6. Bf4 {[%clk 0:02:56]}  Bd6 {[%clk 0:03:02]} 7. e3 {[%clk 0:02:55]}  Ne7 {[%clk 0:02:54]} 8. Qc2 {[%clk 0:02:36]}  Bxf4 {[%clk 0:02:45]} 9. exf4 {[%clk 0:02:36]}  Bf5 {[%clk 0:02:46]} 10. Bd3 {[%clk 0:02:19]}  Bxd3 {[%clk 0:02:46]} 11. Qxd3 {[%clk 0:02:20]}  O-O {[%clk 0:02:41]} 12. h4 {[%clk 0:02:15]}  Nd7 {[%clk 0:02:37]} 13. Kf1 {[%clk 0:02:10]}  Nf6 {[%clk 0:02:31]} 14. Re1 {[%clk 0:02:05]}  Nc8 {[%clk 0:02:20]} 15. Ne5 {[%clk 0:01:57]}  Nd6 {[%clk 0:02:20]} 16. f3 {[%clk 0:01:52]}  Nh5 {[%clk 0:02:14]} 17. Ne2 {[%clk 0:01:52]}  f6 {[%clk 0:01:36]} 18. Nxc6 {[%clk 0:01:34]}  bxc6 {[%clk 0:01:35]} 19. g4 {[%clk 0:01:35]}  Qe8 {[%clk 0:01:26]} 20. Kf2 {[%clk 0:01:27]}  Qg6 {[%clk 0:01:07]} 21. f5 {[%clk 0:01:15]}  Qh6 {[%clk 0:01:04]} 22. gxh5 {[%clk 0:01:13]}  Qxh5 {[%clk 0:01:05]} 23. Ng3 {[%clk 0:00:58]}  Qh6 {[%clk 0:01:05]} 24. Qe3 {[%clk 0:00:56]}  Qxe3+ {[%clk 0:01:03]} 25. Rxe3 {[%clk 0:00:57]}  Rfe8 {[%clk 0:01:01]} 26. b3 {[%clk 0:00:54]}  Rxe3 {[%clk 0:01:00]} 27. Kxe3 {[%clk 0:00:54]}  Re8+ {[%clk 0:00:59]} 28. Kd3 {[%clk 0:00:53]}  Kf7 {[%clk 0:00:42]} 29. Rc1 {[%clk 0:00:53]}  Rc8 {[%clk 0:00:43]} 30. h5 {[%clk 0:00:43]}  Rc7 {[%clk 0:00:34]} 31. Rh1 {[%clk 0:00:33]}  h6 {[%clk 0:00:27]} 32. Rc1 {[%clk 0:00:28]}  Rc8 {[%clk 0:00:27]} 33. Ke3 {[%clk 0:00:27]}  Re8+ {[%clk 0:00:27]} 34. Kf4 {[%clk 0:00:26]}  Rc8 {[%clk 0:00:27]} 35. Ne2 {[%clk 0:00:20]}  Nb5 {[%clk 0:00:25]} 36. a4 {[%clk 0:00:18]}  Nd6 {[%clk 0:00:23]} 37. Kg4 {[%clk 0:00:18]}  Ke7 {[%clk 0:00:18]} 38. Nf4 {[%clk 0:00:18]}  Kf7 {[%clk 0:00:17]} 39. Ne6 {[%clk 0:00:17]}  Nb7 {[%clk 0:00:13]} 40. Kf4 {[%clk 0:00:16]}  Na5 {[%clk 0:00:11]} 41. Rc3 {[%clk 0:00:15]}  Rb8 {[%clk 0:00:10]} 42. Rc5 {[%clk 0:00:15]}  Nxb3 {[%clk 0:00:09]} 43. Rxc6 {[%clk 0:00:16]}  Rb4 {[%clk 0:00:08]} 44. Rc7+ {[%clk 0:00:16]}  Ke8 {[%clk 0:00:09]} 45. Nxg7+ {[%clk 0:00:16]}  Kd8 {[%clk 0:00:09]} 46. Ne6+ {[%clk 0:00:17]}  Ke8 {[%clk 0:00:09]} 47. Ke3 {[%clk 0:00:17]}  Rxa4 {[%clk 0:00:09]} 48. Rh7 {[%clk 0:00:16]}  Ra3 {[%clk 0:00:08]} 49. Rxh6 {[%clk 0:00:15]}  Nc5+ {[%clk 0:00:07]} 50. Kf4 {[%clk 0:00:15]}  Nxe6+ {[%clk 0:00:07]} 51. fxe6 {[%clk 0:00:15]}  Ke7 {[%clk 0:00:08]} 52. Rh8 {[%clk 0:00:13]}  Kxe6 {[%clk 0:00:08]} 53. Ra8 {[%clk 0:00:13]}  Kf7 {[%clk 0:00:07]} 54. Ra7+ {[%clk 0:00:13]}  Kg8 {[%clk 0:00:07]} 55. h6 {[%clk 0:00:13]}  a5 {[%clk 0:00:07]} 56. Kg4 {[%clk 0:00:13]}  a4 {[%clk 0:00:07]} 57. f4 {[%clk 0:00:13]}  Ra1 {[%clk 0:00:07]} 58. Kf5 {[%clk 0:00:13]}  a3 {[%clk 0:00:07]} 59. Kg6 {[%clk 0:00:12]}  Rg1+ {[%clk 0:00:06]} 60. Kxf6 {[%clk 0:00:12]}  Rg3 {[%clk 0:00:06]} 61. f5 {[%clk 0:00:10]}  Rh3 {[%clk 0:00:05]} 62. Ke5 {[%clk 0:00:10]}  Rxh6 {[%clk 0:00:05]} 63. Rxa3 {[%clk 0:00:10]}  Kf7 {[%clk 0:00:05]} 64. Ra7+ {[%clk 0:00:10]}  Kf8 {[%clk 0:00:05]} 65. Kxd5 {[%clk 0:00:10]}  Rb6 {[%clk 0:00:05]} 66. Ke5 {[%clk 0:00:10]}  Ke8 {[%clk 0:00:05]} 67. d5 {[%clk 0:00:11]}  Rb1 {[%clk 0:00:06]} 68. Ke6 {[%clk 0:00:11]}  Re1+ {[%clk 0:00:06]} 69. Kd6 {[%clk 0:00:11]}  Kf8 {[%clk 0:00:06]} 70. Ra8+ {[%clk 0:00:08]}  Kf7 {[%clk 0:00:06]} 71. Kc6 {[%clk 0:00:09]}  Rc1+ {[%clk 0:00:06]} 72. Kd7 {[%clk 0:00:09]}  Rh1 {[%clk 0:00:04]} 73. d6 {[%clk 0:00:09]}  Kf6 {[%clk 0:00:05]} 74. Rf8+ {[%clk 0:00:09]}  Ke5 {[%clk 0:00:06]} 75. f6 {[%clk 0:00:10]}  Ra1 {[%clk 0:00:04]} 76. Ke7 {[%clk 0:00:09]}  Kd5 {[%clk 0:00:03]} 77. d7 {[%clk 0:00:09]}  Ra7 {[%clk 0:00:04]} 78. Ke8 {[%clk 0:00:09]}  Rxd7 {[%clk 0:00:05]} 79. Kxd7 {[%clk 0:00:09]} 1-0

[Event "January 9 Early 2024"]
[Site "https://www.chess.com"]
[Date "2024.01.11"]
[Round "1"]
[White "Koshulyan, Egor A."]
[Black "Zhukov, Maksim"]
[Result "1-0"]
[Board "312"]
[TimeControl "180+1"]
[WhiteFideId "24237000"]
[BlackFideId "34181790"]
[WhiteElo "2671"]
[BlackElo "2346"]
[WhiteTeam "RUS"]
[BlackTeam "RUS"]
[WhiteClock "0:00:10"]
[BlackClock "0:00:10"]

1. e4 {[%clk 0:03:00]}  c5 {[%clk 0:02:59]} 2. Nf3 {[%clk 0:02:36]}  e6 {[%clk 0:02:55]} 3. b3 {[%clk 0:02:34]}  a6 {[%clk 0:02:55]} 4. Bb2 {[%clk 0:02:33]}  b5 {[%clk 0:02:54]} 5. g3 {[%clk 0:02:16]}  Bb7 {[%clk 0:02:53]} 6. d3 {[%clk 0:02:16]}  Nc6 {[%clk 0:02:51]} 7. Bg2 {[%clk 0:02:16]}  Nf6 {[%clk 0:02:51]} 8. O-O {[%clk 0:02:15]}  Be7 {[%clk 0:02:50]} 9. Nbd2 {[%clk 0:02:15]}  d5 {[%clk 0:02:45]} 10. e5 {[%clk 0:02:04]}  Nd7 {[%clk 0:02:45]} 11. Qe2 {[%clk 0:02:05]}  Qc7 {[%clk 0:02:44]} 12. Rfe1 {[%clk 0:02:06]}  h6 {[%clk 0:02:41]} 13. h4 {[%clk 0:02:06]}  O-O {[%clk 0:02:35]} 14. Nf1 {[%clk 0:02:05]}  Rfc8 {[%clk 0:02:28]} 15. N1h2 {[%clk 0:02:02]}  Bf8 {[%clk 0:02:27]} 16. Ng4 {[%clk 0:02:02]}  Rab8 {[%clk 0:02:23]} 17. a4 {[%clk 0:01:34]}  b4 {[%clk 0:02:17]} 18. Nd2 {[%clk 0:01:29]}  a5 {[%clk 0:02:11]} 19. f4 {[%clk 0:01:28]}  Qb6 {[%clk 0:02:08]} 20. Kh2 {[%clk 0:01:27]}  Nd4 {[%clk 0:01:56]} 21. Qd1 {[%clk 0:01:22]}  Rc6 {[%clk 0:01:51]} 22. h5 {[%clk 0:01:18]}  Rbc8 {[%clk 0:01:50]} 23. Ne3 {[%clk 0:01:16]}  R6c7 {[%clk 0:01:45]} 24. Rc1 {[%clk 0:01:16]}  Be7 {[%clk 0:01:31]} 25. Rg1 {[%clk 0:01:04]}  Ba6 {[%clk 0:01:27]} 26. Nf3 {[%clk 0:00:57]}  Bb7 {[%clk 0:01:19]} 27. Ng4 {[%clk 0:00:52]}  Bf8 {[%clk 0:01:17]} 28. Ne3 {[%clk 0:00:41]}  Be7 {[%clk 0:01:15]} 29. Kh1 {[%clk 0:00:40]}  Nf8 {[%clk 0:01:13]} 30. Ng4 {[%clk 0:00:40]}  Nf5 {[%clk 0:01:12]} 31. Qe1 {[%clk 0:00:37]}  c4 {[%clk 0:01:07]} 32. Kh2 {[%clk 0:00:20]}  c3 {[%clk 0:00:52]} 33. Ba1 {[%clk 0:00:20]}  Bc5 {[%clk 0:00:46]} 34. Rf1 {[%clk 0:00:20]}  Ne3 {[%clk 0:00:40]} 35. Nxe3 {[%clk 0:00:18]}  Bxe3 {[%clk 0:00:40]} 36. Rd1 {[%clk 0:00:18]}  Bc5 {[%clk 0:00:36]} 37. d4 {[%clk 0:00:18]}  Be7 {[%clk 0:00:35]} 38. g4 {[%clk 0:00:19]}  Nh7 {[%clk 0:00:34]} 39. f5 {[%clk 0:00:18]}  Ng5 {[%clk 0:00:29]} 40. Qg3 {[%clk 0:00:07]}  Ba6 {[%clk 0:00:11]} 41. Rfe1 {[%clk 0:00:06]}  Ne4 {[%clk 0:00:08]} 42. Qf4 {[%clk 0:00:06]}  Bg5 {[%clk 0:00:05]} 43. Nxg5 {[%clk 0:00:06]}  hxg5 {[%clk 0:00:06]} 44. Qf3 {[%clk 0:00:05]}  f6 {[%clk 0:00:04]} 45. Qe3 {[%clk 0:00:04]}  exf5 {[%clk 0:00:03]} 46. gxf5 {[%clk 0:00:04]}  Nd2 {[%clk 0:00:03]} 47. e6 {[%clk 0:00:03]}  Bb7 {[%clk 0:00:03]} 48. Qf2 {[%clk 0:00:02]}  Re8 {[%clk 0:00:04]} 49. Qg3 {[%clk 0:00:02]}  Rce7 {[%clk 0:00:04]} 50. Qg4 {[%clk 0:00:03]}  Qc7+ {[%clk 0:00:04]} 51. Kg1 {[%clk 0:00:03]}  Bc8 {[%clk 0:00:05]} 52. Kh1 {[%clk 0:00:03]}  Bb7 {[%clk 0:00:05]} 53. Qe2 {[%clk 0:00:02]}  Ne4 {[%clk 0:00:06]} 54. Qf2 {[%clk 0:00:02]}  Qd6 {[%clk 0:00:06]} 55. Qf3 {[%clk 0:00:02]}  Ng3+ {[%clk 0:00:06]} 56. Kg1 {[%clk 0:00:03]}  Ne4 {[%clk 0:00:07]} 57. Re3 {[%clk 0:00:03]}  Nd2 {[%clk 0:00:08]} 58. Qe2 {[%clk 0:00:03]}  Qg3 {[%clk 0:00:07]} 59. Rxg3 {[%clk 0:00:03]}  Nf3+ {[%clk 0:00:08]} 60. Bxf3 {[%clk 0:00:03]}  g4 {[%clk 0:00:08]} 61. Rxg4 {[%clk 0:00:04]}  Kh8 {[%clk 0:00:09]} 62. Rg3 {[%clk 0:00:04]}  Rg8 {[%clk 0:00:09]} 63. Qg2 {[%clk 0:00:05]}  g5 {[%clk 0:00:10]} 64. hxg6 {[%clk 0:00:06]}  Rgg7 {[%clk 0:00:11]} 65. Rh3+ {[%clk 0:00:06]}  Kg8 {[%clk 0:00:12]} 66. Qh2 {[%clk 0:00:07]}  Rxg6+ {[%clk 0:00:11]} 67. fxg6 {[%clk 0:00:08]}  Kg7 {[%clk 0:00:11]} 68. Rh8 {[%clk 0:00:08]}  Kxg6 {[%clk 0:00:10]} 69. Qh5+ {[%clk 0:00:09]}  Kg7 {[%clk 0:00:10]} 70. Qh6# {[%clk 0:00:10]} 1-0

[Event "January 9 Early 2024"]
[Site "https://www.chess.com"]
[Date "2024.01.11"]
[Round "1"]
[White "Vestby-Ellingsen, Mads"]
[Black "Abdulrahman Mohammad, Al Taher"]
[Result "1-0"]
[Board "313"]
[TimeControl "180+1"]
[WhiteFideId "1520857"]
[BlackFideId "9310258"]
[WhiteElo "2608"]
[BlackElo "2254"]
[WhiteTeam "NOR"]
[BlackTeam "UAE"]
[WhiteClock "0:00:02"]
[BlackClock "0:00:02"]

1. e4 {[%clk 0:03:00]}  c5 {[%clk 0:03:00]} 2. Nf3 {[%clk 0:03:00]}  d6 {[%clk 0:02:58]} 3. d4 {[%clk 0:03:01]}  cxd4 {[%clk 0:02:59]} 4. Nxd4 {[%clk 0:03:01]}  Nf6 {[%clk 0:03:00]} 5. Nc3 {[%clk 0:03:02]}  Nc6 {[%clk 0:03:00]} 6. Nb3 {[%clk 0:02:58]}  g6 {[%clk 0:02:56]} 7. f3 {[%clk 0:02:56]}  Bg7 {[%clk 0:02:56]} 8. Be3 {[%clk 0:02:56]}  O-O {[%clk 0:02:56]} 9. Qd2 {[%clk 0:02:57]}  Be6 {[%clk 0:02:53]} 10. Bh6 {[%clk 0:02:55]}  d5 {[%clk 0:02:48]} 11. O-O-O {[%clk 0:02:52]}  dxe4 {[%clk 0:02:42]} 12. Bxg7 {[%clk 0:02:47]}  Qxd2+ {[%clk 0:02:38]} 13. Nxd2 {[%clk 0:02:47]}  Kxg7 {[%clk 0:02:39]} 14. Ndxe4 {[%clk 0:02:47]}  Nxe4 {[%clk 0:02:36]} 15. Nxe4 {[%clk 0:02:45]}  b6 {[%clk 0:02:16]} 16. a3 {[%clk 0:02:42]}  Rac8 {[%clk 0:02:16]} 17. Bb5 {[%clk 0:02:39]}  Na5 {[%clk 0:02:02]} 18. Kb1 {[%clk 0:02:37]}  Nc4 {[%clk 0:02:02]} 19. Bd7 {[%clk 0:02:32]}  Bxd7 {[%clk 0:01:08]} 20. Rxd7 {[%clk 0:02:33]}  Ne3 {[%clk 0:01:00]} 21. Rxe7 {[%clk 0:02:09]}  a5 {[%clk 0:00:57]} 22. g4 {[%clk 0:01:43]}  Nxc2 {[%clk 0:00:53]} 23. Nd6 {[%clk 0:01:42]}  Rc6 {[%clk 0:00:39]} 24. Ne8+ {[%clk 0:01:40]}  Kg8 {[%clk 0:00:34]} 25. Rd1 {[%clk 0:01:34]}  Re6 {[%clk 0:00:12]} 26. Rxe6 {[%clk 0:01:19]}  fxe6 {[%clk 0:00:13]} 27. Kxc2 {[%clk 0:01:10]}  Rxe8 {[%clk 0:00:13]} 28. Rd4 {[%clk 0:01:07]}  e5 {[%clk 0:00:11]} 29. Rd6 {[%clk 0:01:04]}  Rf8 {[%clk 0:00:11]} 30. Rd3 {[%clk 0:01:03]}  Kf7 {[%clk 0:00:11]} 31. Rb3 {[%clk 0:01:00]}  Ke7 {[%clk 0:00:11]} 32. Kd2 {[%clk 0:00:59]}  h5 {[%clk 0:00:07]} 33. gxh5 {[%clk 0:00:52]}  gxh5 {[%clk 0:00:08]} 34. Ke3 {[%clk 0:00:53]}  Rf6 {[%clk 0:00:06]} 35. Ke4 {[%clk 0:00:53]}  Rc6 {[%clk 0:00:03]} 36. Kxe5 {[%clk 0:00:51]}  Rc5+ {[%clk 0:00:03]} 37. Ke4 {[%clk 0:00:50]}  Rc2 {[%clk 0:00:04]} 38. h4 {[%clk 0:00:47]}  Rc4+ {[%clk 0:00:03]} 39. Ke5 {[%clk 0:00:46]}  Rxh4 {[%clk 0:00:03]} 40. Rxb6 {[%clk 0:00:46]}  Rh1 {[%clk 0:00:03]} 41. Rb7+ {[%clk 0:00:44]}  Ke8 {[%clk 0:00:02]} 42. f4 {[%clk 0:00:44]}  h4 {[%clk 0:00:01]} 43. Ke6 {[%clk 0:00:43]}  Re1+ {[%clk 0:00:02]} 44. Kf6 {[%clk 0:00:43]}  h3 {[%clk 0:00:02]} 45. Rh7 {[%clk 0:00:42]}  Re3 {[%clk 0:00:02]} 46. f5 {[%clk 0:00:41]}  Rb3 {[%clk 0:00:01]} 47. Kg6 {[%clk 0:00:34]}  Rxb2 {[%clk 0:00:01]} 48. Rh8+ {[%clk 0:00:32]}  Ke7 {[%clk 0:00:02]} 49. f6+ {[%clk 0:00:29]}  Ke6 {[%clk 0:00:02]} 50. Re8+ {[%clk 0:00:27]}  Kd7 {[%clk 0:00:03]} 51. f7 {[%clk 0:00:15]}  Rg2+ {[%clk 0:00:03]} 52. Kf5 {[%clk 0:00:15]}  h2 {[%clk 0:00:02]} 53. Rh8 {[%clk 0:00:13]}  Rf2+ {[%clk 0:00:01]} 54. Kg6 {[%clk 0:00:10]}  Ke7 {[%clk 0:00:02]} 55. Re8+ {[%clk 0:00:07]}  Kd7 {[%clk 0:00:02]} 56. Re1 {[%clk 0:00:07]}  Rg2+ {[%clk 0:00:02]} 57. Kf6 {[%clk 0:00:07]}  Rg1 {[%clk 0:00:02]} 58. f8=Q {[%clk 0:00:04]}  h1=Q {[%clk 0:00:01]} 59. Qe7+ {[%clk 0:00:02]}  Kc6 {[%clk 0:00:01]} 60. Re6+ {[%clk 0:00:02]}  Kd5 {[%clk 0:00:01]} 61. Qd7+ {[%clk 0:00:02]}  Kc4 {[%clk 0:00:02]} 62. Qc7+ {[%clk 0:00:02]}  Kb3 {[%clk 0:00:02]} 63. Re3+ {[%clk 0:00:02]} 1-0

[Event "January 9 Early 2024"]
[Site "https://www.chess.com"]
[Date "2024.01.11"]
[Round "1"]
[White "Buscar, Michael"]
[Black "Tarhan, Adar"]
[Result "1/2-1/2"]
[Board "315"]
[TimeControl "180+1"]
[WhiteFideId "2603616"]
[BlackFideId "34544712"]
[WhiteElo "2395"]
[BlackElo "2704"]
[WhiteTeam "CAN"]
[BlackTeam "TUR"]
[WhiteClock "0:00:11"]
[BlackClock "0:00:18"]

1. d4 {[%clk 0:02:59]}  Nf6 {[%clk 0:03:00]} 2. c4 {[%clk 0:02:59]}  e6 {[%clk 0:03:00]} 3. Nc3 {[%clk 0:02:59]}  Bb4 {[%clk 0:03:00]} 4. e4 {[%clk 0:02:59]}  Nxe4 {[%clk 0:03:00]} 5. Qc2 {[%clk 0:02:58]}  f5 {[%clk 0:02:53]} 6. Bd3 {[%clk 0:02:55]}  Nf6 {[%clk 0:02:45]} 7. Nf3 {[%clk 0:02:55]}  O-O {[%clk 0:02:45]} 8. O-O {[%clk 0:02:52]}  b6 {[%clk 0:02:45]} 9. a3 {[%clk 0:02:51]}  Bxc3 {[%clk 0:02:45]} 10. Qxc3 {[%clk 0:02:51]}  Bb7 {[%clk 0:02:46]} 11. d5 {[%clk 0:02:17]}  exd5 {[%clk 0:02:41]} 12. Bxf5 {[%clk 0:02:03]}  dxc4 {[%clk 0:02:40]} 13. Qxc4+ {[%clk 0:02:01]}  d5 {[%clk 0:02:40]} 14. Qh4 {[%clk 0:01:59]}  Nbd7 {[%clk 0:02:31]} 15. Ng5 {[%clk 0:01:54]}  h6 {[%clk 0:02:20]} 16. Ne6 {[%clk 0:01:04]}  Qe7 {[%clk 0:02:20]} 17. Nxf8 {[%clk 0:00:52]}  Rxf8 {[%clk 0:02:21]} 18. Bd2 {[%clk 0:00:47]}  Qe5 {[%clk 0:02:04]} 19. Bxd7 {[%clk 0:00:34]}  Nxd7 {[%clk 0:02:05]} 20. Bc3 {[%clk 0:00:33]}  Qf5 {[%clk 0:02:05]} 21. Qg3 {[%clk 0:00:29]}  Rf7 {[%clk 0:01:59]} 22. Qxc7 {[%clk 0:00:28]}  Nc5 {[%clk 0:01:57]} 23. Qb8+ {[%clk 0:00:23]}  Kh7 {[%clk 0:01:55]} 24. Bd4 {[%clk 0:00:20]}  Ne6 {[%clk 0:01:52]} 25. Qe5 {[%clk 0:00:18]}  Qg4 {[%clk 0:01:49]} 26. h3 {[%clk 0:00:18]}  Qg6 {[%clk 0:01:47]} 27. f4 {[%clk 0:00:16]}  Rf5 {[%clk 0:01:46]} 28. Qe3 {[%clk 0:00:15]}  Nc5 {[%clk 0:01:32]} 29. g4 {[%clk 0:00:13]}  Rf7 {[%clk 0:01:26]} 30. Bxc5 {[%clk 0:00:13]}  bxc5 {[%clk 0:01:26]} 31. Qxc5 {[%clk 0:00:14]}  Qd3 {[%clk 0:01:25]} 32. Qc3 {[%clk 0:00:12]}  Qa6 {[%clk 0:01:19]} 33. Qd4 {[%clk 0:00:12]}  Re7 {[%clk 0:01:19]} 34. Rad1 {[%clk 0:00:12]}  Re4 {[%clk 0:01:18]} 35. Qd3 {[%clk 0:00:11]}  Qb6+ {[%clk 0:01:17]} 36. Kg2 {[%clk 0:00:11]}  d4 {[%clk 0:01:15]} 37. Rfe1 {[%clk 0:00:11]}  Qg6 {[%clk 0:01:08]} 38. f5 {[%clk 0:00:10]}  Qe8 {[%clk 0:01:02]} 39. Kf2 {[%clk 0:00:08]}  Qe5 {[%clk 0:01:00]} 40. Rxe4 {[%clk 0:00:05]}  Bxe4 {[%clk 0:01:01]} 41. Qxd4 {[%clk 0:00:06]}  Qf4+ {[%clk 0:00:58]} 42. Ke1 {[%clk 0:00:05]}  Qf3 {[%clk 0:00:52]} 43. Qf2 {[%clk 0:00:05]}  Qxh3 {[%clk 0:00:52]} 44. Qf4 {[%clk 0:00:04]}  Bf3 {[%clk 0:00:49]} 45. Rd3 {[%clk 0:00:03]}  Qh1+ {[%clk 0:00:47]} 46. Kd2 {[%clk 0:00:04]}  Qg2+ {[%clk 0:00:48]} 47. Kc3 {[%clk 0:00:04]}  Be4 {[%clk 0:00:45]} 48. Rg3 {[%clk 0:00:04]}  Qc2+ {[%clk 0:00:45]} 49. Kd4 {[%clk 0:00:04]}  Bb7 {[%clk 0:00:40]} 50. b3 {[%clk 0:00:03]}  Qb2+ {[%clk 0:00:38]} 51. Kc4 {[%clk 0:00:02]}  Qxa3 {[%clk 0:00:34]} 52. g5 {[%clk 0:00:03]}  Ba6+ {[%clk 0:00:34]} 53. Kc3 {[%clk 0:00:03]}  Qa1+ {[%clk 0:00:30]} 54. Kb4 {[%clk 0:00:03]}  Qe1+ {[%clk 0:00:27]} 55. Ka3 {[%clk 0:00:04]}  Qa1+ {[%clk 0:00:24]} 56. Kb4 {[%clk 0:00:04]}  Qe1+ {[%clk 0:00:19]} 57. Rc3 {[%clk 0:00:04]}  hxg5 {[%clk 0:00:13]} 58. Qxg5 {[%clk 0:00:03]}  Bd3 {[%clk 0:00:11]} 59. Qg6+ {[%clk 0:00:03]}  Kg8 {[%clk 0:00:11]} 60. Qe6+ {[%clk 0:00:03]}  Qxe6 {[%clk 0:00:11]} 61. fxe6 {[%clk 0:00:04]}  Bf5 {[%clk 0:00:11]} 62. Re3 {[%clk 0:00:04]}  Kf8 {[%clk 0:00:11]} 63. Kc5 {[%clk 0:00:05]}  Ke7 {[%clk 0:00:12]} 64. Re5 {[%clk 0:00:05]}  Bxe6 {[%clk 0:00:11]} 65. b4 {[%clk 0:00:04]}  Kf6 {[%clk 0:00:12]} 66. Re3 {[%clk 0:00:04]}  g5 {[%clk 0:00:12]} 67. Kc6 {[%clk 0:00:04]}  a6 {[%clk 0:00:11]} 68. Kb6 {[%clk 0:00:04]}  Bc4 {[%clk 0:00:11]} 69. Rc3 {[%clk 0:00:04]}  Bb5 {[%clk 0:00:12]} 70. Rg3 {[%clk 0:00:04]}  Kf5 {[%clk 0:00:12]} 71. Rc3 {[%clk 0:00:03]}  g4 {[%clk 0:00:12]} 72. Rc8 {[%clk 0:00:04]}  g3 {[%clk 0:00:12]} 73. Rf8+ {[%clk 0:00:05]}  Kg4 {[%clk 0:00:12]} 74. Rg8+ {[%clk 0:00:05]}  Kf3 {[%clk 0:00:13]} 75. Kc5 {[%clk 0:00:03]}  g2 {[%clk 0:00:13]} 76. Kd4 {[%clk 0:00:04]}  Kf2 {[%clk 0:00:13]} 77. Kc3 {[%clk 0:00:04]}  g1=Q {[%clk 0:00:13]} 78. Rxg1 {[%clk 0:00:05]}  Kxg1 {[%clk 0:00:14]} 79. Kb2 {[%clk 0:00:05]}  Kf2 {[%clk 0:00:15]} 80. Ka1 {[%clk 0:00:06]}  Ke3 {[%clk 0:00:16]} 81. Kb1 {[%clk 0:00:07]}  Kd2 {[%clk 0:00:16]} 82. Ka1 {[%clk 0:00:08]}  Kc3 {[%clk 0:00:17]} 83. Kb1 {[%clk 0:00:09]}  Kb3 {[%clk 0:00:15]} 84. Ka1 {[%clk 0:00:10]}  Bd3 {[%clk 0:00:16]} 85. b5 {[%clk 0:00:08]}  Bxb5 {[%clk 0:00:16]} 86. Kb1 {[%clk 0:00:08]}  a5 {[%clk 0:00:17]} 87. Ka1 {[%clk 0:00:09]}  a4 {[%clk 0:00:17]} 88. Kb1 {[%clk 0:00:10]}  a3 {[%clk 0:00:17]} 89. Ka1 {[%clk 0:00:10]}  Kc2 {[%clk 0:00:17]} 90. Ka2 {[%clk 0:00:10]}  Kc3 {[%clk 0:00:18]} 91. Kxa3 {[%clk 0:00:11]} 1/2-1/2